bitfinex/quotes_SOLUSD_20250616
["timestamp","ask_amount","ask_price","bid_price","bid_amount"]
[1750059323046,4.65933846,157.4,157.36,22.24118852]
[1750059324440,4.65933846,157.4,157.36,15.88633342]
[1750059324950,4.65933846,157.39,157.36,15.88633342]
[1750059325141,4.65933846,157.38,157.36,15.88633342]
[1750059325766,57.53821409,157.44,157.36,15.88633342]
[1750059326064,4.65933846,157.38,157.36,15.88633342]
[1750059326458,51.18654886,157.44,157.36,15.88633342]
[1750059326459,4.65933846,157.39,157.36,15.88633342]
[1750059327877,4.65933846,157.39,157.33,22.53055716]
[1750059328057,4.65933846,157.38,157.33,22.24623402]
[1750059328258,18.64964886,157.41,157.33,26.90557248]
[1750059328576,4.65933846,157.38,157.33,26.90557248]
[1750059329387,4.65933846,157.38,157.34,4.65933846]
[1750059330090,4.65933846,157.38,157.35,6.35525897]
[1750059330877,23.30898732,157.39,157.35,6.35525897]
[1750059331064,4.65933846,157.38,157.35,6.35525897]
[1750059331467,4.65933846,157.38,157.35,22.24340641]
[1750059332957,18.64964886,157.39,157.35,22.24340641]
[1750059333157,23.30898732,157.39,157.35,22.24340641]
[1750059333575,26.0,157.41,157.36,4.65933846]
[1750059333759,26.0,157.41,157.35,54.01970129]
[1750059333964,26.0,157.41,157.37,4.65933846]
[1750059334874,26.0,157.41,157.38,6.35404752]
[1750059335567,30.65933846,157.41,157.38,6.35404752]
[1750059335779,4.65933846,157.39,157.38,6.35404752]
[1750059336179,4.65933846,157.39,157.3,95.4761]
[1750059336180,6.29193846,157.39,157.35,6.35525897]
[1750059336476,4.65933846,157.36,157.35,6.35525897]
[1750059336677,4.65933846,157.37,157.35,6.35525897]
[1750059337183,4.65933846,157.37,157.33,22.24611745]
[1750059337481,4.65933846,157.36,157.33,22.24611745]
[1750059337664,4.65933846,157.37,157.33,22.24611745]
[1750059339268,4.65933846,157.36,157.33,15.89005059]
[1750059341259,4.65933846,157.35,157.32,6.35647088]
[1750059343696,4.65933846,157.34,157.32,6.35647088]
[1750059343884,26.0,157.36,157.32,6.35647088]
[1750059343885,26.0,157.36,157.32,22.24764809]
[1750059344085,4.65933846,157.35,157.32,22.24764809]
[1750059344288,26.0,157.36,157.32,22.24764809]
[1750059344491,30.65933846,157.36,157.32,22.24764809]
[1750059344691,30.65933846,157.36,157.32,26.90698655]
[1750059345591,26.0,157.36,157.32,26.90698655]
[1750059345885,4.65933846,157.4,157.35,4.65933846]
[1750059346075,18.64964886,157.4,157.36,4.65933846]
[1750059346276,44.64964886,157.4,157.36,4.65933846]
[1750059346682,49.30898732,157.4,157.35,4.65933846]
[1750059347684,49.30898732,157.4,157.36,6.3548551]
[1750059347876,18.64964886,157.4,157.36,6.3548551]
[1750059348178,18.64964886,157.4,157.36,11.01419356]
[1750059349474,18.64964886,157.4,157.36,26.90133133]
[1750059349882,18.64964886,157.4,157.36,15.88713777]
[1750059350081,18.64964886,157.4,157.36,20.54647623]
[1750059352171,18.64964886,157.4,157.36,26.90133133]
[1750059353780,27.6007,157.43,157.39,4.65933846]
[1750059353980,26.0,157.43,157.39,4.65933846]
[1750059354180,4.65933846,157.42,157.36,6.3548551]
[1750059354386,4.65933846,157.38,157.36,6.3548551]
[1750059354699,4.65933846,157.37,157.36,6.3548551]
[1750059354918,4.65933846,157.38,157.36,6.3548551]
[1750059355208,23.30898732,157.38,157.36,6.3548551]
[1750059355673,23.30898732,157.37,157.34,6.35566289]
[1750059355868,4.65933846,157.36,157.32,4.65933846]
[1750059356497,4.65933846,157.36,157.32,11.01580934]
[1750059356682,18.64964886,157.37,157.32,26.90698655]
[1750059357295,23.30898732,157.37,157.32,26.90698655]
[1750059357597,23.30898732,157.38,157.33,4.65933846]
[1750059357800,4.65933846,157.37,157.32,26.90698655]
[1750059358776,26.0,157.39,157.33,4.65933846]
[1750059359092,30.65933846,157.38,157.33,4.65933846]
[1750059359875,4.65933846,157.37,157.32,26.90698655]
[1750059361706,4.65933846,157.36,157.32,22.24764809]
[1750059362714,4.65933846,157.35,157.32,6.35647088]
[1750059364389,4.65933846,157.34,157.32,6.35647088]
[1750059364596,4.65933846,157.35,157.32,6.35647088]
[1750059365198,4.65933846,157.35,157.31,22.24883505]
[1750059366103,4.65933846,157.32,157.31,6.35687496]
[1750059366404,4.65933846,157.32,157.29,6.35768326]
[1750059366602,4.65933846,157.3,157.26,6.35889609]
[1750059367178,4.65933846,157.28,157.22,15.90066572]
[1750059367405,4.65933846,157.28,157.23,4.65933846]
[1750059368203,4.65933846,157.27,157.22,20.56000418]
[1750059369104,4.65933846,157.27,157.22,22.26117964]
[1750059369285,4.65933846,157.27,157.22,26.9205181]
[1750059369488,4.65933846,157.25,157.22,6.36051392]
[1750059371190,4.65933846,157.25,157.21,22.26285099]
[1750059371386,4.65933846,157.26,157.21,26.92218945]
[1750059372604,26.0,157.27,157.21,26.92218945]
[1750059372812,4.65933846,157.26,157.21,26.92218945]
[1750059374599,4.65933846,157.25,157.21,22.26285099]
[1750059375140,4.65933846,157.25,157.17,10.40972225]
[1750059375141,18.64964886,157.25,157.17,10.40972225]
[1750059375290,4.65933846,157.21,157.18,15.90533146]
[1750059375498,4.65933846,157.22,157.18,15.90533146]
[1750059377398,4.65933846,157.22,157.18,22.26746404]
[1750059378231,44.64964886,157.25,157.19,4.65933846]
[1750059378408,4.65933846,157.24,157.19,4.65933846]
[1750059378925,49.30898732,157.25,157.2,4.65933846]
[1750059379126,4.65933846,157.24,157.2,4.65933846]
[1750059379610,4.65933846,157.24,157.21,6.36091851]
[1750059380220,44.64964886,157.25,157.21,6.36091851]
[1750059380423,4.65933846,157.24,157.21,6.36091851]
[1750059381507,4.65933846,157.24,157.18,15.90533146]
[1750059381713,4.65933846,157.24,157.19,4.65933846]
[1750059383826,4.65933846,157.24,157.2,6.36132315]
[1750059384005,4.65933846,157.23,157.2,6.36132315]
[1750059384406,44.64964886,157.25,157.2,6.36132315]
[1750059384711,4.65933846,157.24,157.2,6.36132315]
[1750059386236,4.65933846,157.22,157.17,6.36253737]
[1750059386406,4.65933846,157.22,157.17,11.02187583]
[1750059386734,4.65933846,157.21,157.17,6.36253737]
[1750059388011,4.65933846,157.21,157.16,11.02228068]
[1750059388216,4.65933846,157.21,157.16,6.36294222]
[1750059388401,4.65933846,157.21,157.16,11.02228068]
[1750059389113,30.65933846,157.22,157.16,6.36294222]
[1750059389321,30.65933846,157.22,157.17,4.65933846]
[1750059389906,4.65933846,157.21,157.18,6.36213258]
[1750059390322,4.65933846,157.19,157.16,6.36294222]
[1750059390506,4.65933846,157.2,157.16,6.36294222]
[1750059391213,4.65933846,157.19,157.16,6.36294222]
[1750059391520,23.30898732,157.21,157.16,11.02228068]
[1750059392115,4.65933846,157.17,157.13,6.36415706]
[1750059392917,4.65933846,157.16,157.13,6.36415706]
[1750059393829,4.65933846,157.17,157.13,6.36415706]
[1750059394430,4.65933846,157.15,157.13,6.36415706]
[1750059394608,4.65933846,157.14,157.09,22.28022151]
[1750059394807,4.65933846,157.14,157.1,4.65933846]
[1750059395218,4.65933846,157.15,157.1,4.65933846]
[1750059395420,4.65933846,157.15,157.09,22.28022151]
[1750059395421,26.0,157.15,157.09,22.28022151]
[1750059395604,30.65933846,157.15,157.1,4.65933846]
[1750059395805,30.65933846,157.15,157.09,22.28022151]
[1750059396015,30.65933846,157.15,157.11,6.36496722]
[1750059397030,26.0,157.15,157.11,22.27738527]
[1750059397214,18.64964886,157.17,157.12,4.65933846]
[1750059397413,23.30898732,157.17,157.13,4.65933846]
[1750059398319,23.30898732,157.17,157.12,4.65933846]
[1750059398829,23.30898732,157.17,157.11,15.91241805]
[1750059398830,18.64964886,157.17,157.13,4.65933846]
[1750059399011,23.30898732,157.17,157.13,4.65933846]
[1750059399212,23.30898732,157.17,157.12,4.65933846]
[1750059399612,23.30898732,157.17,157.13,4.65933846]
[1750059400019,4.65933846,157.16,157.11,4.65933846]
[1750059400234,18.64964886,157.17,157.1,20.57276939]
[1750059400235,4.65933846,157.15,157.1,20.57276939]
[1750059400414,4.65933846,157.16,157.12,4.65933846]
[1750059400925,23.30898732,157.17,157.12,4.65933846]
[1750059401336,18.64964886,157.17,157.12,4.65933846]
[1750059401520,23.30898732,157.17,157.12,4.65933846]
[1750059402938,23.30898732,157.17,157.1,15.91343093]
[1750059403139,23.30898732,157.17,157.12,4.65933846]
[1750059404711,18.64964886,157.17,157.13,26.93388818]
[1750059405128,23.30898732,157.17,157.13,26.93388818]
[1750059407113,23.30898732,157.17,157.09,38.19466546]
[1750059407334,23.30898732,157.17,157.09,54.1091094]
[1750059407729,4.65933846,157.16,157.09,54.1091094]
[1750059407933,4.65933846,157.16,157.12,4.65933846]
[1750059408849,23.30898732,157.17,157.13,6.36415706]
[1750059410223,23.30898732,157.18,157.14,4.65933846]
[1750059410419,23.30898732,157.18,157.13,22.27454972]
[1750059410823,23.30898732,157.18,157.13,26.93388818]
[1750059411327,4.65933846,157.17,157.13,26.93388818]
[1750059411529,4.65933846,157.17,157.13,22.27454972]
[1750059412147,4.65933846,157.16,157.12,6.36456211]
[1750059412844,4.65933846,157.16,157.12,11.02390057]
[1750059413255,4.65933846,157.16,157.12,6.36456211]
[1750059413429,4.65933846,157.16,157.12,4.65933846]
[1750059413618,4.65933846,157.16,157.1,15.91257856]
[1750059413825,4.65933846,157.16,157.12,4.65933846]
[1750059414130,4.65933846,157.14,157.1,15.91257856]
[1750059414328,30.65933846,157.15,157.1,20.57191702]
[1750059414540,30.65933846,157.15,157.11,4.65933846]
[1750059414737,26.0,157.15,157.11,4.65933846]
[1750059414942,26.0,157.15,157.12,4.65933846]
[1750059415129,26.0,157.15,157.11,4.65933846]
[1750059415329,26.0,157.15,157.12,6.36456211]
[1750059417927,30.65933846,157.15,157.12,6.36456211]
[1750059419251,26.0,157.15,157.12,6.36456211]
[1750059419445,30.65933846,157.15,157.12,6.36456211]
[1750059419951,30.65933846,157.15,157.11,6.36496722]
[1750059420532,30.65933846,157.15,157.11,22.27738527]
[1750059420741,26.0,157.15,157.11,26.93672373]
[1750059421247,7.27746471,157.18,157.14,4.65933846]
[1750059421441,7.27746471,157.18,157.17,4.65933846]
[1750059421642,7.27746471,157.18,157.15,0.28432314]
[1750059421957,7.27746471,157.18,157.17,11.02187583]
[1750059422326,7.27746471,157.18,157.17,6.36253737]
[1750059422522,7.27746471,157.18,157.17,11.02187583]
[1750059428757,7.27746471,157.18,157.17,6.36253737]
[1750059428946,7.27746471,157.18,157.17,11.02187583]
[1750059429255,7.27746471,157.18,157.17,6.36253737]
[1750059429557,7.27746471,157.18,157.17,11.02187583]
[1750059430659,7.27746471,157.18,157.14,4.65933846]
[1750059431855,7.27746471,157.18,157.15,6.36334712]
[1750059432041,7.27746471,157.18,157.15,11.02268558]
[1750059432238,7.27746471,157.18,157.15,6.36334712]
[1750059432443,7.27746471,157.18,157.15,11.02268558]
[1750059433237,7.27746471,157.18,157.15,6.36334712]
[1750059433641,7.27746471,157.18,157.13,4.65933846]
[1750059433848,7.27746471,157.18,157.14,11.02309052]
[1750059436363,7.27746471,157.18,157.14,6.36375206]
[1750059436663,7.27746471,157.18,157.14,11.02309052]
[1750059437055,7.27746471,157.18,157.14,6.36375206]
[1750059437367,7.27746471,157.18,157.14,11.02309052]
[1750059439372,11.93680317,157.18,157.14,11.02309052]
[1750059442066,7.27746471,157.18,157.14,11.02309052]
[1750059442246,18.64964886,157.17,157.14,11.02309052]
[1750059442855,18.64964886,157.17,157.15,4.65933846]
[1750059443166,18.64964886,157.17,157.14,6.36375206]
[1750059443167,18.64964886,157.17,157.14,11.02309052]
[1750059444174,7.27746471,157.18,157.16,4.65933846]
[1750059444471,7.27746471,157.18,157.17,11.02187583]
[1750059449571,7.27746471,157.18,157.17,6.36253737]
[1750059449773,7.27746471,157.18,157.17,11.02187583]
[1750059450482,7.27746471,157.18,157.14,22.27313223]
[1750059450780,7.27746471,157.18,157.17,4.65933846]
[1750059452878,7.27746471,157.18,157.17,11.02187583]
[1750059453349,7.27746471,157.18,157.17,6.36253737]
[1750059453661,7.27746471,157.18,157.17,11.02187583]
[1750059454976,7.27746471,157.18,157.14,22.27313223]
[1750059455181,7.27746471,157.18,157.17,4.65933846]
[1750059456482,7.27746471,157.18,157.17,11.02187583]
[1750059461578,7.27746471,157.18,157.14,22.27313223]
[1750059461779,7.27746471,157.18,157.17,4.65933846]
[1750059464096,7.27746471,157.18,157.17,11.02187583]
[1750059464394,7.27746471,157.18,157.17,6.36253737]
[1750059465795,7.27746471,157.18,157.17,11.02187583]
[1750059468600,25.92711357,157.18,157.17,6.36253737]
[1750059473191,18.64964886,157.18,157.17,6.36253737]
[1750059474892,27.5914,157.21,157.17,6.36253737]
[1750059475090,18.64964886,157.2,157.17,6.36253737]
[1750059477686,147.0,157.25,157.19,2.99533206]
[1750059477901,2.99533206,157.26,157.22,2.99533206]
[1750059478094,10.4476062,157.26,157.22,2.99533206]
[1750059478293,18.64964886,157.25,157.22,2.99533206]
[1750059478782,18.64964886,157.25,157.22,4.67637763]
[1750059478988,18.64964886,157.25,157.23,6.36010939]
[1750059480513,18.64964886,157.25,157.23,11.03648702]
[1750059481013,18.64964886,157.25,157.22,4.67637763]
[1750059482219,18.64964886,157.25,157.23,6.36010939]
[1750059483909,18.64964886,157.23,157.18,4.67637763]
[1750059484099,4.67637763,157.23,157.18,11.03851021]
[1750059484297,4.67637763,157.22,157.18,6.36213258]
[1750059484498,4.67637763,157.23,157.18,11.03851021]
[1750059485401,4.67637763,157.22,157.18,6.36213258]
[1750059485603,30.67637763,157.22,157.18,6.36213258]
[1750059486012,4.67637763,157.2,157.18,6.36213258]
[1750059486190,4.67637763,157.19,157.15,6.36334712]
[1750059486390,18.64964886,157.19,157.15,11.03972475]
[1750059487806,4.67637763,157.19,157.15,6.36334712]
[1750059488123,4.67637763,157.18,157.15,6.36334712]
[1750059488645,4.67637763,157.19,157.15,6.36334712]
[1750059490217,4.67637763,157.18,157.15,6.36334712]
[1750059491126,18.64964886,157.17,157.14,6.36375206]
[1750059491419,4.67637763,157.16,157.14,6.36375206]
[1750059492526,4.67637763,157.16,157.12,11.04093974]
[1750059493904,4.67637763,157.16,157.12,6.36456211]
[1750059494105,4.67637763,157.16,157.11,26.95312516]
[1750059494335,4.67637763,157.15,157.11,6.36496722]
[1750059494629,23.32602649,157.14,157.11,6.36496722]
[1750059494802,18.64964886,157.14,157.11,6.36496722]
[1750059495010,23.32602649,157.14,157.11,6.36496722]
[1750059495210,4.67637763,157.13,157.11,6.36496722]
[1750059496016,18.64964886,157.14,157.11,6.36496722]
[1750059496234,4.67637763,157.13,157.09,6.36577757]
[1750059496627,18.64964886,157.14,157.09,6.36577757]
[1750059496628,23.32602649,157.14,157.09,11.0421552]
[1750059496813,23.32602649,157.14,157.09,26.95659914]
[1750059497327,23.32602649,157.14,157.09,22.28022151]
[1750059497532,18.64964886,157.14,157.1,4.67637763]
[1750059497907,18.64964886,157.13,157.1,4.67637763]
[1750059498313,18.64964886,157.13,157.11,6.36496722]
[1750059499240,1.6017,157.16,157.11,6.36496722]
[1750059499441,18.64964886,157.16,157.13,4.67637763]
[1750059500326,18.64964886,157.16,157.14,6.36375206]
[1750059502348,18.64964886,157.16,157.13,6.36415706]
[1750059503019,4.67637763,157.16,157.13,6.36415706]
[1750059503343,18.64964886,157.15,157.13,6.36415706]
[1750059504539,18.64964886,157.15,157.12,6.36456211]
[1750059505942,18.64964886,157.15,157.11,20.58879568]
[1750059506453,18.64964886,157.13,157.09,11.0421552]
[1750059506656,26.0,157.16,157.09,11.0421552]
[1750059506657,23.32602649,157.15,157.09,6.36577757]
[1750059506864,23.32602649,157.15,157.1,4.67637763]
[1750059507472,23.32602649,157.15,157.11,6.36496722]
[1750059512742,23.32602649,157.15,157.07,22.2830585]
[1750059512942,23.32602649,157.15,157.1,4.67637763]
[1750059513366,23.32602649,157.15,157.07,22.2830585]
[1750059513564,18.64964886,157.15,157.1,4.67637763]
[1750059513869,23.32602649,157.15,157.11,4.67637763]
[1750059514072,18.64964886,157.13,157.07,22.2830585]
[1750059514244,18.64964886,157.13,157.1,4.67637763]
[1750059514944,23.32602649,157.15,157.11,6.36496722]
[1750059515758,18.64964886,157.15,157.13,4.67637763]
[1750059516545,18.64964886,157.15,157.11,22.27738527]
[1750059516744,18.64964886,157.15,157.13,4.67637763]
[1750059517269,18.64964886,157.15,157.14,11.04012969]
[1750059517772,18.64964886,157.18,157.14,6.36375206]
[1750059517948,23.32602649,157.18,157.14,6.36375206]
[1750059520553,18.64964886,157.18,157.14,11.04012969]
[1750059521351,23.32602649,157.18,157.14,6.36375206]
[1750059521887,4.67637763,157.17,157.14,6.36375206]
[1750059522058,18.64964886,157.18,157.14,6.36375206]
[1750059522252,4.67637763,157.17,157.14,6.36375206]
[1750059522787,4.67637763,157.17,157.13,6.36415706]
[1750059522971,11.97537584,157.17,157.13,6.36415706]
[1750059524886,7.29899821,157.17,157.13,11.04053469]
[1750059525084,7.29899821,157.17,157.14,4.67637763]
[1750059525775,7.29899821,157.17,157.13,11.04053469]
[1750059526285,18.64964886,157.16,157.15,4.67637763]
[1750059526486,18.64964886,157.16,157.13,22.27454972]
[1750059526674,18.64964886,157.16,157.14,4.67637763]
[1750059527889,18.64964886,157.16,157.15,6.36334712]
[1750059530707,18.64964886,157.16,157.13,4.67637763]
[1750059531007,18.64964886,157.16,157.1,22.2788033]
[1750059531203,18.64964886,157.16,157.12,4.67637763]
[1750059532375,23.32602649,157.16,157.12,4.67637763]
[1750059532978,23.32602649,157.16,157.12,11.04086287]
[1750059533594,23.32602649,157.16,157.12,6.36448524]
[1750059534301,23.32602649,157.16,157.11,11.04122673]
[1750059534670,23.32602649,157.16,157.08,1.5144]
[1750059534997,23.32602649,157.16,157.1,4.67637763]
[1750059534998,18.64964886,157.14,157.1,4.67637763]
[1750059535900,18.64964886,157.14,157.1,11.04162465]
[1750059536888,18.64964886,157.14,157.1,6.36524702]
[1750059537205,18.64964886,157.14,157.1,11.04162465]
[1750059538085,4.67637763,157.14,157.09,6.36577757]
[1750059538401,18.64964886,157.12,157.09,11.0421552]
[1750059539901,18.64964886,157.13,157.09,6.36577757]
[1750059540077,18.64964886,157.13,157.09,11.0421552]
[1750059541105,18.64964886,157.13,157.09,26.95659914]
[1750059541490,7.29899821,157.17,157.12,37.29387763]
[1750059541689,7.29899821,157.17,157.16,4.96070077]
[1750059541884,7.29899821,157.17,157.16,6.54590077]
[1750059542291,7.29899821,157.17,157.16,12.90884299]
[1750059542494,18.64964886,157.23,157.17,0.28432314]
[1750059542690,18.64964886,157.23,157.21,4.67637763]
[1750059543518,18.64964886,157.23,157.2,4.67637763]
[1750059544410,18.64964886,157.23,157.19,6.36164149]
[1750059544597,18.64964886,157.23,157.2,4.67637763]
[1750059547103,18.64964886,157.23,157.19,11.03801912]
[1750059549195,18.64964886,157.23,157.2,4.67637763]
[1750059551699,18.64964886,157.23,157.21,4.67637763]
[1750059552827,18.64964886,157.23,157.19,6.36160651]
[1750059553122,18.64964886,157.23,157.2,4.67637763]
[1750059554623,18.64964886,157.23,157.21,4.67637763]
[1750059555029,18.64964886,157.23,157.2,11.03764904]
[1750059555493,18.64964886,157.23,157.2,6.36127141]
[1750059555697,18.64964886,157.23,157.2,11.03764904]
[1750059557099,18.64964886,157.23,157.17,6.36253737]
[1750059557425,18.64964886,157.23,157.19,4.67637763]
[1750059558425,18.64964886,157.23,157.2,4.67637763]
[1750059558623,18.64964886,157.23,157.17,6.36253737]
[1750059558825,18.64964886,157.23,157.2,4.67637763]
[1750059559531,18.64964886,157.23,157.2,11.03734473]
[1750059560315,18.64964886,157.23,157.21,4.67637763]
[1750059561503,18.64964886,157.23,157.21,11.03702023]
[1750059562117,18.64964886,157.23,157.21,6.3606426]
[1750059562505,18.64964886,157.23,157.18,6.36213258]
[1750059562822,18.64964886,157.23,157.19,4.67637763]
[1750059564632,23.32602649,157.23,157.19,11.03777432]
[1750059565123,23.32602649,157.23,157.19,6.36139669]
[1750059567230,23.32602649,157.23,157.19,4.67637763]
[1750059568133,23.32602649,157.23,157.19,11.03778424]
[1750059570237,23.32602649,157.23,157.18,4.67637763]
[1750059572011,23.32602649,157.23,157.19,4.67637763]
[1750059572630,23.32602649,157.23,157.17,22.26888081]
[1750059572837,23.32602649,157.23,157.19,4.67637763]
[1750059573038,18.64964886,157.23,157.19,4.67637763]
[1750059573225,23.32602649,157.23,157.19,4.67637763]
[1750059574128,23.32602649,157.23,157.19,11.03778137]
[1750059575532,23.32602649,157.23,157.18,4.67637763]
[1750059577013,18.64964886,157.23,157.18,4.67637763]
[1750059577215,23.32602649,157.23,157.18,4.67637763]
[1750059578928,21.64410063,157.23,157.19,6.36172784]
[1750059579649,18.64964886,157.23,157.19,6.36172784]
[1750059579814,21.64410063,157.23,157.19,6.36172784]
[1750059581139,18.64964886,157.21,157.19,6.36172784]
[1750059581317,26.21860117,157.21,157.19,6.36172784]
[1750059582024,26.21860117,157.21,157.18,6.36213258]
[1750059582750,26.21860117,157.21,157.18,9.35658435]
[1750059584226,26.21860117,157.21,157.19,2.99445177]
[1750059584744,26.21860117,157.21,157.2,2.99445177]
[1750059585533,7.56895231,157.21,157.2,2.99445177]
[1750059585947,7.56895231,157.21,157.18,22.26746404]
[1750059586134,7.56895231,157.21,157.2,2.99445177]
[1750059586339,7.56895231,157.21,157.2,9.35577492]
[1750059589951,7.56895231,157.21,157.2,6.36132315]
[1750059590756,18.64964886,157.2,157.17,6.36253737]
[1750059591057,21.64410063,157.2,157.17,6.36253737]
[1750059591239,21.64410063,157.2,157.16,6.36294222]
[1750059593056,4.68045434,157.2,157.15,4.68045434]
[1750059593959,4.68045434,157.2,157.16,6.36294222]
[1750059594159,4.68045434,157.22,157.17,4.68045434]
[1750059594341,18.64964886,157.21,157.17,4.68045434]
[1750059595562,26.38915585,157.21,157.16,22.27029778]
[1750059595764,18.64964886,157.21,157.17,4.68045434]
[1750059596135,18.64964886,157.21,157.18,6.36213258]
[1750059601863,23.3301032,157.21,157.18,6.36213258]
[1750059602869,18.64964886,157.21,157.17,11.04299171]
[1750059603065,18.64964886,157.21,157.17,26.94933515]
[1750059603253,23.3301032,157.21,157.17,26.94933515]
[1750059604752,23.3301032,157.21,157.17,11.04299171]
[1750059605652,23.3301032,157.21,157.17,6.36253737]
[1750059605840,18.64964886,157.21,157.17,6.36253737]
[1750059606042,23.3301032,157.21,157.17,6.36253737]
[1750059606568,4.68045434,157.2,157.15,4.68045434]
[1750059606743,12.3272511,157.2,157.15,4.68045434]
[1750059608071,12.3272511,157.2,157.14,22.27230348]
[1750059608277,12.3272511,157.2,157.16,6.36294222]
[1750059610750,7.64679676,157.2,157.16,11.04339656]
[1750059611650,7.64679676,157.2,157.16,6.36294222]
[1750059611868,12.3272511,157.2,157.16,6.36294222]
[1750059612256,12.3272511,157.2,157.14,22.27230348]
[1750059612455,12.3272511,157.2,157.15,4.68045434]
[1750059612669,18.64964886,157.19,157.14,22.27230348]
[1750059612867,18.64964886,157.19,157.15,4.68045434]
[1750059613469,7.64679676,157.2,157.18,4.68045434]
[1750059613801,7.64679676,157.2,157.19,4.68045434]
[1750059613965,7.64679676,157.2,157.18,4.68045434]
[1750059614165,7.64679676,157.2,157.15,0.28432314]
[1750059614350,7.64679676,157.2,157.19,6.36172784]
[1750059615859,7.64679676,157.2,157.19,9.35591838]
[1750059616347,7.64679676,157.2,157.19,2.99419054]
[1750059618176,7.64679676,157.2,157.18,2.99419054]
[1750059618360,7.64679676,157.2,157.19,6.36172784]
[1750059618557,3.31805156,157.26,157.19,9.35591838]
[1750059618748,3.31805156,157.26,157.19,22.26604745]
[1750059618749,18.64964886,157.25,157.19,22.26604745]
[1750059618947,2.99419054,157.24,157.19,25.26023799]
[1750059619362,18.64964886,157.25,157.2,2.99419054]
[1750059619546,18.64964886,157.25,157.21,2.99419054]
[1750059620489,21.6438394,157.25,157.22,6.36051392]
[1750059622573,21.6438394,157.25,157.21,6.36091851]
[1750059622886,2.99419054,157.24,157.21,6.36091851]
[1750059624487,2.99419054,157.24,157.19,18.89851015]
[1750059624488,2.99419054,157.24,157.2,6.36132315]
[1750059625491,18.64964886,157.23,157.2,6.36132315]
[1750059625792,18.64964886,157.23,157.1,1.5414]
[1750059625793,2.99419054,157.21,157.1,1.5414]
[1750059626091,2.99419054,157.17,157.13,9.40229054]
[1750059626394,2.99419054,157.17,157.13,6.4081]
[1750059626568,2.99419054,157.18,157.14,6.36375206]
[1750059626765,44.64964886,157.19,157.14,6.36375206]
[1750059626971,2.99419054,157.18,157.14,9.3579426]
[1750059628965,4.68123181,157.18,157.14,6.36375206]
[1750059629263,44.64964886,157.19,157.14,6.36375206]
[1750059629470,4.68123181,157.18,157.14,6.36375206]
[1750059633999,44.64964886,157.19,157.14,6.36375206]
[1750059634310,4.68123181,157.18,157.14,6.36375206]
[1750059634797,49.33088067,157.19,157.14,11.04498387]
[1750059634973,4.68123181,157.18,157.14,11.04498387]
[1750059635495,44.64964886,157.19,157.14,11.04498387]
[1750059635669,4.68123181,157.18,157.14,6.36375206]
[1750059636999,4.68123181,157.18,157.14,22.27313223]
[1750059639194,4.68123181,157.16,157.14,6.36375206]
[1750059639876,49.33088067,157.18,157.14,6.36375206]
[1750059640399,4.68123181,157.17,157.14,6.36375206]
[1750059642690,4.68123181,157.17,157.13,22.27432141]
[1750059644591,4.68123181,157.17,157.13,15.91016435]
[1750059644989,44.64964886,157.18,157.13,15.91016435]
[1750059645191,4.68123181,157.17,157.13,15.91016435]
[1750059646176,4.68123181,157.17,157.13,22.27432141]
[1750059646886,4.68123181,157.17,157.13,26.95555322]
[1750059647280,44.64964886,157.18,157.13,26.95555322]
[1750059647508,1.6168,157.21,157.14,4.68123181]
[1750059647689,15.29212707,157.2,157.16,4.68123181]
[1750059648689,4.68123181,157.2,157.17,6.36253737]
[1750059649804,23.33088067,157.2,157.16,6.36294222]
[1750059650179,23.33088067,157.19,157.16,6.36294222]
[1750059651485,4.68123181,157.18,157.16,6.36294222]
[1750059651688,23.33088067,157.19,157.16,6.36294222]
[1750059651877,18.64964886,157.19,157.15,22.27117474]
[1750059652097,23.33088067,157.19,157.15,22.27117474]
[1750059654021,23.33088067,157.19,157.15,15.90782762]
[1750059654501,23.33088067,157.19,157.13,11.04538887]
[1750059654502,4.68123181,157.18,157.13,11.04538887]
[1750059655005,4.68123181,157.18,157.13,26.95578153]
[1750059657013,4.68123181,157.18,157.13,22.27454972]
[1750059657207,4.68123181,157.18,157.13,26.95578153]
[1750059660313,4.68123181,157.18,157.14,4.68123181]
[1750059660511,30.68123181,157.21,157.16,4.68123181]
[1750059660695,23.33088067,157.22,157.17,4.68123181]
[1750059661614,23.33088067,157.22,157.18,6.36213258]
[1750059662619,4.68123181,157.21,157.18,6.36213258]
[1750059663521,4.68123181,157.21,157.17,15.90622385]
[1750059663692,4.68123181,157.2,157.17,15.90622385]
[1750059665213,4.68123181,157.21,157.17,22.26876122]
[1750059666094,4.68123181,157.2,157.17,6.36253737]
[1750059666293,4.68123181,157.19,157.17,6.36253737]
[1750059667104,4.68123181,157.19,157.15,6.36334712]
[1750059667600,4.68123181,157.19,157.15,22.27171492]
[1750059668194,28.09280531,157.23,157.15,22.27171492]
[1750059668396,4.68123181,157.19,157.15,22.27171492]
[1750059668707,4.68123181,157.18,157.15,15.9083678]
[1750059669102,4.68123181,157.18,157.14,6.36375206]
[1750059670911,44.64964886,157.2,157.12,15.91047669]
[1750059670912,4.68123181,157.17,157.12,22.2750388]
[1750059671089,4.68123181,157.17,157.12,26.95627061]
[1750059671489,4.68123181,157.17,157.12,22.2750388]
[1750059671703,46.23994886,157.2,157.12,26.95627061]